Cogmind - Beta 14 @@@ ROGUE MODE // 2024.12.02 @ 09:14:36 Player: Tereza Result: Destroyed by B8-EMO(R) with Subdweller Laser Performance ------------- Evolutions (0) 0 Regions Visited (3) 600 Robots Destroyed (31) 155 Value Destroyed (708) 708 Prototype IDs (0) 0 Alien Tech Used (0) 0 Bonus (85) 85 TOTAL SCORE: 1548 Bonus ------- Follower Combat Kills 85 Cogmind --------- Core Integrity 0/250 Matter 250/300 Energy 32/160 System Corruption 0% Temperature Cool (6) Movement Treading (240) Ox1 Location -10/Subcaves Parts ------- > --- POWER (1) -------- Light Nuclear Core > --- PROPULSION (2) --- Light Treads > --- UTILITY (2) ------ Large Storage Unit > --- WEAPON (2) ------- Subdweller Laser Subdweller Laser > --- INVENTORY (15) --- Subdweller Power Source Aluminum Leg Wheel Wheel Subdweller Monowheel High-capacity Matter Pod (200) Sensor Array Makeshift Thermal Plating Hacking Suite Makeshift System Shield Dirty Datajack (18) Mining Laser Peak State ------------ > --- POWER ------------ (None) > --- PROPULSION ------- Light Treads Spiked Treads > --- UTILITY ---------- Large Storage Unit > --- WEAPON ----------- Dirty Datajack Mining Laser > --- INVENTORY -------- Ion Engine Subdweller Power Source Light Nuclear Core Aluminum Leg Wheel Wheel Subdweller Monowheel High-capacity Matter Pod Sensor Array Makeshift Thermal Plating Hacking Suite Makeshift System Shield Subdweller Laser Subdweller Laser [Rating: 13] Favorites ----------- Power Light Ion Engine Engine Light Ion Engine Power Core Light Nuclear Core Propulsion Light Treads Treads Light Treads Wheel Wheel Utility Large Storage Unit Device Seismic Detector Storage Large Storage Unit Weapon Assault Rifle Energy Gun Small Laser Ballistic Gun Assault Rifle Special Weapon Mining Laser Special Melee Weapon Dirty Datajack Build | -11 -10 -10 -10 ------- Run | Yrd Mat Min Sub Slots Evolved . | . . . . Power . | . . . . Propulsion . | . . . . Utility . | . . . . Weapon . | . . . . Parts Attached 28 | 6 2 3 17 Power 3 | 1 . . 2 Engine 2 | 1 . . 1 Core 1 | . . . 1 Reactor . | . . . . Propulsion 6 | 2 . . 4 Treads 5 | 2 . . 3 Leg . | . . . . Wheel 1 | . . . 1 Hover . | . . . . Flight . | . . . . Utility 5 | 1 2 1 1 Device 3 | . 1 1 1 Storage 2 | 1 1 . . Processor . | . . . . Hackware . | . . . . Protection . | . . . . Artifact . | . . . . Weapon 14 | 2 . 2 10 Energy Gun 6 | . . . 6 Energy Cannon . | . . . . Ballistic Gun 4 | 2 . 1 1 Ballistic Cannon . | . . . . Launcher . | . . . . Special Weapon 3 | . . 1 2 Impact Weapon . | . . . . Slashing Weapon . | . . . . Piercing Weapon . | . . . . Special Melee Weapon 1 | . . . 1 Unidentified Prototypes . | . . . . Parts Lost 12 | . . 1 11 Power 2 | . . . 2 Propulsion 4 | . . . 4 Utility 2 | . . . 2 Weapon 4 | . . 1 3 Highest Loss Streak 5 | . . 1 5 To Critical Strikes . | . . . . Average Slot Usage (%) 93 | . 97 99 78 Engine 11 | . 14 14 1 Treads 25 | . 28 28 16 Wheel 2 | . . . 9 Device 11 | . 11 14 8 Storage 14 | . 14 14 14 Energy Gun 2 | . . . 12 Ballistic Gun 24 | . 28 27 11 Peak Build Rating 13 | 6 8 8 13 Average Rating 7 | 4 7 7 8 On Entrance 5 | . 6 8 8 Naked Turns . | . . . . Heaviest Build 28 | 12 28 28 28 Greatest Support 40 | 40 40 40 40 Greatest Overweight (x) 7 | 1 . . 7 Average Overweight (x) . | . . . 1 Largest Inventory Capacity 15 | 8 15 15 15 Average Capacity 13 | 7 13 15 15 Most Carried 15 | 6 15 15 15 Average Carried 12 | 4 10 14 14 Final Capacity 15 | 8 15 15 15 Final Carried 15 | 6 15 15 12 Class Distribution -------------------- 100% | Mutant Dominant Class ---------------- Mutant | -10/Materials Mutant | -10/Mines Mutant | -10/Subcaves Resources | -11 -10 -10 -10 ----------- Run | Yrd Mat Min Sub Matter Collected 942 | 194 510 127 111 Remotely . | . . . . Salvage Created 874 | . 627 59 188 Parts 74 | . 59 3 12 Haulers Intercepted 1 | . 1 . . Recyclers Shooed . | . . . . Parts Field Recycled . | . . . . Retrieved Matter . | . . . . Parts Self-Destructed 5 | . . . 5 Prevented . | . . . . Kills | -11 -10 -10 -10 ------- Run | Yrd Mat Min Sub Combat Hostiles Destroyed 22 | . 14 1 7 Guns 22 | . 14 1 7 Classes Destroyed 8 | . 7 . 1 Worker 2 | . 2 . . Builder 1 | . 1 . . Hauler 1 | . 1 . . Operator 2 | . 2 . . Watcher 3 | . 3 . . Swarmer 8 | . 5 . 3 Grunt 10 | . 9 1 . Subdweller 4 | . . . 4 Best Kill Streak 7 | . 7 1 3 Combat Bots Only 3 | . 3 1 3 Max Kills in Single Turn 2 | . 2 1 1 Gunslinging 1 | . 1 . . Exploded . | . . . . Melee . | . . . . Uniques/NPCs Destroyed . | . . . . Combat | -11 -10 -10 -10 -------- Run | Yrd Mat Min Sub Hostile Shots Fired 92 | . 38 3 51 Missed 16 | . 9 1 6 Damage Taken 1432 | . 336 60 1036 Core 258 | . 53 3 202 Absorbed by Shields . | . . . . Core Remaining (%) 100 | 100 . . . Volleys Fired 83 | . 52 8 23 Largest 2 | . 2 2 2 Hottest 120 | . 40 100 120 Shots Fired 160 | . 104 14 42 Gun 156 | . 104 12 40 Cannon . | . . . . Launcher . | . . . . Special 4 | . . 2 2 Kinetic 137 | . 104 12 21 Thermal 23 | . . 2 21 Explosive . | . . . . Electromagnetic . | . . . . Robot Hit Streak 24 | . 15 6 24 Robot Miss Streak 3 | . 3 2 1 Penetration Max . | . . . . Secondary Targets 2 | . 1 1 . Max Gunslinging Chain 1 | . 1 1 . Shots Hit Robots 114 | . 70 8 36 Core Hits 51 | . 33 3 15 Critical Kills 1 | . 1 . . Critical Parts Destroyed 1 | . 1 . . Critical Strikes 2 | . 2 . . Destroy 2 | . 2 . . Melee Attacks 2 | . . . 2 Impact . | . . . . Slashing . | . . . . Piercing 2 | . . . 2 Sneak Attacks . | . . . . Combat Hostiles . | . . . . Follow-up Attacks . | . . . . Damage Inflicted 1418 | . 938 78 402 Guns 1413 | . 938 78 397 Cannons . | . . . . Explosions . | . . . . Melee 5 | . . . 5 Ramming . | . . . . Kinetic 1214 | . 938 78 198 Thermal 199 | . . . 199 Explosive . | . . . . Electromagnetic . | . . . . Impact . | . . . . Slashing . | . . . . Piercing 5 | . . . 5 Highest Corruption . | . . . . Average Corruption . | . . . . Corruption Purged . | . . . . Corruption Blocked . | . . . . Overload Shots . | . . . . Overflow Damage . | . . . . Projectiles . | . . . . Explosions . | . . . . Melee . | . . . . Knockbacks . | . . . . Impact . | . . . . Kinetic . | . . . . Secondary . | . . . . Self-Inflicted Damage . | . . . . Shots . | . . . . Rammed . | . . . . Targets Rammed . | . . . . Kicked . | . . . . Crushed . | . . . . Highest Temperature 22 | . 20 22 6 Average Temperature 8 | . 6 11 5 Received Heat Transfer 408 | . 189 15 204 Siege Activations . | . . . . Robots Corrupted . | . . . . Combat Hostiles . | . . . . Parts Fried . | . . . . Impact Corruptions . | . . . . Robots Melted . | . . . . Combat Hostiles . | . . . . Parts Melted 3 | . . . 3 Heat Transferred 325 | . . . 325 Parts Sabotaged . | . . . . Parts Stolen . | . . . . Parts Stripped . | . . . . Power Chain Reactions . | . . . . Alert | -11 -10 -10 -10 ------- Run | Yrd Mat Min Sub Peak Influence 189 | . 189 85 . Initial 30 | . . 30 . Average 70 | . 95 22 . Maximum Alert Level . | . . . . Low Security (%) 100 | 100 100 100 . Level 1 . | . . . . Level 2 . | . . . . Level 3 . | . . . . Level 4 . | . . . . Level 5 . | . . . . High Security . | . . . . Max Security . | . . . . Squads Dispatched 4 | . 4 . . Investigation 3 | . 3 . . Extermination . | . . . . Reinforcement 1 | . 1 . . Assault . | . . . . Garrison . | . . . . Intercept . | . . . . Searches Triggered . | . . . . Construction Impeded . | . . . . Haulers Reinforced . | . . . . Active Scanning Responses . | . . . . Cargo Convoy Interrupts . | . . . . Stealth | -11 -10 -10 -10 --------- Run | Yrd Mat Min Sub Distress Signals 1 | . 1 . . Communications Jammed . | . . . . Distress Signals . | . . . . Times Spotted 42 | . 27 5 10 Peak Tracking Total 5 | . 5 2 3 Tactical Retreats 3 | . 1 2 . Traps | -11 -10 -10 -10 ------- Run | Yrd Mat Min Sub Traps Triggered 3 | . 2 1 . Indirectly . | . . . . Trap Hack Attempts . | . . . . Triggered . | . . . . Disarmed . | . . . . Reprogrammed . | . . . . Reused . | . . . . Traps Extracted . | . . . . Installed . | . . . . Triggered . | . . . . Machines | -11 -10 -10 -10 ---------- Run | Yrd Mat Min Sub Machines Disabled . | . . . . Max in Single Turn . | . . . . Machines Repaired . | . . . . Machines Dismantled . | . . . . Machines Sabotaged . | . . . . Overloaded Fab Kills . | . . . . Hacking | -11 -10 -10 -10 --------- Run | Yrd Mat Min Sub Machines Accessed 6 | . 5 1 . Terminals 5 | . 5 . . Fabricators . | . . . . Repair Stations . | . . . . Recycling Units . | . . . . Scanalyzers . | . . . . Garrison Access . | . . . . Total Hacks 21 | . 20 1 . Successful 12 | . 11 1 . Failed 9 | . 9 . . Catastrophic . | . . . . Database Lockouts . | . . . . Manual 14 | . 14 . . Terminals 20 | . 20 . . Fabricators . | . . . . Repair Stations . | . . . . Recycling Units . | . . . . Scanalyzers . | . . . . Garrison Access . | . . . . Terminal Hacks 10 | . 9 1 . Robot Analysis 5 | . 5 . . Open Door 1 | . . 1 . Unreport Threat 1 | . 1 . . Dispatch Records 1 | . 1 . . Security Status 1 | . 1 . . Hauler Manifests 1 | . 1 . . Fabricator Hacks . | . . . . Repair Station Hacks . | . . . . Recycling Unit Hacks . | . . . . Scanalyzer . | . . . . Garrison Access Hacks . | . . . . Unauthorized Hacks 2 | . 2 . . Terminals 2 | . 2 . . Botnet 2 | . 2 . . Fabricators . | . . . . Repair Stations . | . . . . Recycling Units . | . . . . Scanalyzers . | . . . . Garrison Access . | . . . . Data Cores Recovered 1 | . 1 . . Used 1 | . 1 . . Hacking Detections 4 | . 4 . . Full Trace Events 1 | . 1 . . Feedback Events . | . . . . Feedback Blocked . | . . . . Robot Schematics Acquired . | . . . . Robots Built . | . . . . Authchips . | . . . . Time . | . . . . Total Robot Build Rating . | . . . . Part Schematics Acquired . | . . . . Parts Built . | . . . . Authchips . | . . . . Time . | . . . . Total Part Build Rating . | . . . . Parts Repaired . | . . . . Time . | . . . . Parts Recycled . | . . . . Recycled Matter . | . . . . Retrieved Matter . | . . . . Retrieved Components . | . . . . Parts Scanalyzed . | . . . . Part Schematics Acquired . | . . . . Parts Damaged . | . . . . Bothacking | -11 -10 -10 -10 ------------ Run | Yrd Mat Min Sub Used RIF Installer . | . . . . Robots Hacked . | . . . . Non-combat . | . . . . Combat . | . . . . Robot Hacks Applied . | . . . . Relay Couplers Released . | . . . . Fabnet Peak Effective % . | . . . . Robots Rewired . | . . . . Allies Hacked . | . . . . Hacks Repelled . | . . . . Allies | -11 -10 -10 -10 -------- Run | Yrd Mat Min Sub Total Allies 3 | . . 3 . Largest Group 3 | . . 3 . Highest-Rated Group 40 | . . 40 . Highest-Rated Ally 16 | . . 16 . Total Orders . | . . . . Ally Attacks 31 | . . 31 . Total Damage 319 | . . 319 . Kills 3 | . . 3 . Allies Corrupted . | . . . . Allies Melted . | . . . . Intel | -11 -10 -10 -10 ------- Run | Yrd Mat Min Sub Robot Analysis Total 5 | . 5 . . Derelict Logs Recovered 1 | . . . 1 Drone Launches . | . . . . Drone Recoveries . | . . . . Exploration | -11 -10 -10 -10 ------------- Run | Yrd Mat Min Sub Turns Passed 2334 | 78 1228 527 501 Spaces Moved 1291 | 42 625 303 321 Core 8 | 4 . . 4 Treads 1011 | 38 625 303 45 Legs . | . . . . Wheels 272 | . . . 272 Hover . | . . . . Flight . | . . . . Fastest Speed 50 | 50 160 160 110 Average Speed 150 | 151 160 160 120 Slowest Speed 400 | 160 160 160 400 Overloaded Moves . | . . . . Propulsion Burnouts . | . . . . Robots Hopped . | . . . . Cave-ins Triggered . | . . . . Exploration Rate (%) 43 | 3 90 52 27 Regions Visited 3 Branch Regions 2 Pre-discovered Areas . | . . . . Known Exits Taken . | . . . . Unknown Exits Taken 3 | 1 1 1 . Scrap Searched 2 | . . 1 1 Spaces Dug . | . . . . Terrain Destroyed . | . . . . Melee . | . . . . Projectile . | . . . . AOE . | . . . . Terrain Rammed . | . . . . Walls Destroyed . | . . . . Machines Disabled . | . . . . Actions | -11 -10 -10 -10 --------- Run | Yrd Mat Min Sub Total 1521 | 53 749 328 391 Wait 92 | . 61 13 18 Move 1288 | 41 624 302 321 Hop . | . . . . Pick Up 23 | 6 9 1 7 Fast Attach 8 | 6 1 1 . Attach 11 | . . 1 10 Detach 1 | . . . 1 Swap 9 | . 1 1 7 Drop 4 | . 1 1 2 Fire 83 | . 52 8 23 Melee 2 | . . . 2 Ram . | . . . . Kick . | . . . . Crush . | . . . . Escape Stasis . | . . . . Rewire . | . . . . Trap . | . . . . Miscellaneous . | . . . . Route ------- -11/Scrapyard -10/Materials (discovered 3 exits: [*Mat x2] / *Min) -10/Mines (discovered 2 exits: [*Mat] / [*Sub]) -10/Subcaves History --------- Turn | Location | Event 30 | -11/Scrapyard | Discovered new exit (range 15) 79 | -11/Scrapyard | Entered Materials 198 | -10/Materials | Discovered new exit (range 16) 308 | -10/Materials | Build established: Mutant 567 | -10/Materials | Discovered new exit (range 14) 1046 | -10/Materials | Discovered new exit (range 15) 1307 | -10/Materials | Entered Mines 1311 | -10/Mines | Assisted by bots powering up and referring to "LRC-V3" 1366 | -10/Mines | Met a Derelict who couldn't figure out how to use a Trap Extractor 1661 | -10/Mines | Discovered new exit (range 7) 1828 | -10/Mines | Discovered new exit (range 3) 1834 | -10/Mines | Entered Subcaves 1929 | -10/Subcaves | Lost 5 parts (1p2n1u1w) 1996 | -10/Subcaves | Shifting Twisted Machinery released Spk. Treads 2023 | -10/Subcaves | Shifting Twisted Machinery released Mak. Thermal Plating 2227 | -10/Subcaves | A swath of the cavern ceiling suddenly collapsed 2258 | -10/Subcaves | Core integrity fell below 50% 2264 | -10/Subcaves | Core integrity fell below 20% 2272 | -10/Subcaves | Lost 4 parts (1n1u2w) 2299 | -10/Subcaves | Learned location of 1 exit from Materials 2335 | -10/Subcaves | Destroyed by B8-EMO(R) with Subdweller Laser Last Messages --------------- 02239_ Sensor Array destroyed. 02239_ Lgt. Assault Rifle destroyed. 02241_ Sml. Laser destroyed. 02241_ Wheel destroyed. 02242_ YF-678(R) destroyed. 02248_ Acquired Dirty Datajack. 02253_ Dropped Lgt. Ion Engine. 02253_ Acquired Sub. Power Source. 02268_ Disposable Heat Sink melted. 02268_ D5-SWS(R) destroyed. 02273_ Acquired Sub. Monowheel. 02274_ Acquired 20 matter. 02299_ Acquired derelict log, extracted data. Data stored: Materials exits (x1). 02321_ Splicing IZ-N3G(R)... 02321_ IZ-N3G(R) system unaffected. 02321_ Splicing IZ-N3G(R)... 02321_ IZ-N3G(R) system unaffected. 02327_ Spk. Treads destroyed. 02333_ Ion Engine destroyed. Map ----- +----------------------------------------------------+ | ?????????????????????????????????????????????????? | | ?????????????????????????????????????????????????? | | ?????????????????????????????????????????????????? | | ?????????????????????????????????????????????????? | | ?????????????????????????????????????????????????? | | ?????????????????????????????????????????????????? | | ?????????????????????????????????????????????????? | | ?????????????????????????????????????????????????? | | ?????????????????????????????????????????????????? | | ?????????????????????????????????????????????????? | | ##???????????????????????????????????????????????? | | ##??????????????????????????????????????????????? | | #??????????????????????????????????????????????? | | ##?????????????????????????????#???????????????? | | # ##??????????????????????????## ??????????????? | | # ##???????????????????????""" ??????????????? | | #?????????????????????"#""""""??????????????? | | ###?????????????????????? """""#??????????????? | | #???????????????????????? "" #???????????????? | | ####??????????????????????###" #???????????????? | | #????????????????????????## "" #???????????????? | | #??????????????????????### "" #????????????????? | | #???????????????????????;# "" #????????????????? | | ?###???????????????????#"#R" " "##???????????????? | | ## #??????????????????#;#;RR" ""#???????????????? | | ##???????????????#??##"@## ""#???????????????? | | ##????####??#####"###; ### ## #???????????????? | | # ###?## "### ###" ;;##? #?##???????????????? | | # ### ; ####?#" ??????????????????? | | # ### "#????##"" ?????????????????? | | # ""# *% "##????#"" ????????????????? | | ##" " """ #""##??? #???????????????? | | ??## * """#???# # #???????????????? | | ???#"" #"##??? ####???????????????? | | ???# "" ###????# ??????????????????? | | ???# " "#??????? #??????????????????? | | ???#### "##??????? #???????????????????? | | ?????# #####?????????????????????????????? | | ?????#### ##?????????????????????????????????? | | ????????#######??????????????????????????????????? | | ?????????????????????????????????????????????????? | | ?????????????????????????????????????????????????? | | ?????????????????????????????????????????????????? | | ?????????????????????????????????????????????????? | | ?????????????????????????????????????????????????? | | ?????????????????????????????????????????????????? | | ?????????????????????????????????????????????????? | | ?????????????????????????????????????????????????? | | ?????????????????????????????????????????????????? | | ?????????????????????????????????????????????????? | +----------------------------------------------------+ Best States ------------- Heat Dissipation 25 Energy Generation 10 Energy Capacity 250 Matter Stores 300 Matter Capacity 300 Sight Range 16 Robot Scan Range 14 Terrain Scan Density 10 Evasion (%) 40 Recoil Reduction 2 Item Schematics ----------------- None Robot Schematics ------------------ None Fabricated ------------ Nothing Alien Tech Used ----------------- None Achievements -------------- None Challenges ------------ None Game ------ Seed TiamatDeliveryMallet Manual? 0 Play Time 00:14:00 Cumulative 131.7 hours Start 2024.12.02 @ 09:03:39 End 2024.12.02 @ 09:14:36 Sessions 1 Manual Loads 0 Difficulty Rogue Special Mode None Game No. 159 Rogue 159 Adventurer 0 Explorer 0 Win Type - Total 2 Types 2/0/0/0/0/0/0/0/0 Lore% 66 Gallery% 57 Achievement% 48 Wizard Run 0 Options --------- Layout 1 ASCII 0 Keyboard 1 Movement Numpad Keybinds 0 Fullscreen 1 Font 24/Smallcaps Map View 50x35 Zoom Use 0% Tactical HUD 1 Map Filters NONE Filters NONE Steam 1 RUN: fb37dc4a-4553-418c-8bfb-5ed94348ea95